fUSD/lending_fUSD_20250606
["ID","MTS","AMOUNT","RATE_DAILY","PERIOD"]
[364811864,1749249050486,-913.42,0.00027726,5]
[364811865,1749249050496,-573.44,0.00027726,5]
[364811866,1749249050506,-480.0,0.00027726,5]
[364811867,1749249050516,-602.23,0.00027726,5]
[364811868,1749249050525,-150.994919,0.00027726,5]
[364811869,1749249050538,-553.04,0.00027726,5]
[364811870,1749249050547,-567.5,0.00027726,5]
[364811871,1749249050558,-480.0,0.00027726,5]
[364811872,1749249050568,-480.0,0.00027726,5]
[364811873,1749249050581,-480.0,0.00027726,5]
[364811874,1749249050591,-480.0,0.00027726,5]
[364811875,1749249050602,-502.06,0.00027726,5]
[364811876,1749249050614,-548.89713715,0.00027726,5]
[364811877,1749249050623,-480.0,0.00027726,5]
[364811878,1749249050634,-480.0,0.00027726,5]
[364811879,1749249050644,-846.78,0.00027726,5]
[364811880,1749249050654,-480.0,0.00027726,5]
[364811881,1749249050668,-480.0,0.00027726,5]
[364811882,1749249050678,-480.0,0.00027726,5]
[364811883,1749249050688,-516.88,0.00027726,5]
[364811884,1749249050698,-703.63,0.00027726,5]
[364811885,1749249050707,-480.0,0.00027726,5]
[364811886,1749249050718,-491.95,0.00027726,5]
[364811887,1749249050727,-1302.12,0.00027726,5]
[364811888,1749249050737,-480.0,0.00027726,5]
[364811889,1749249050747,-480.0,0.00027726,5]
[364811890,1749249050758,-861.895964,0.00027726,5]
[364811891,1749249050769,-480.0,0.00027726,5]
[364811892,1749249050778,-480.0,0.00027726,5]
[364811893,1749249050788,-503.98,0.00027726,5]
[364811894,1749249050798,-480.0,0.00027726,5]
[364811895,1749249050807,-480.0,0.00027726,5]
[364811896,1749249050817,-480.0,0.00027726,5]
[364811897,1749249050827,-41603.54,0.00027726,5]
[364811898,1749249050837,-1007.79,0.00027726,5]
[364811899,1749249050847,-1425.585735,0.00027726,5]
[364811900,1749249050856,-2220.64,0.00027726,5]
[364811901,1749249050867,-1000.0,0.00027726,2]
[364811902,1749249050876,-480.0,0.00027726,5]
[364811903,1749249050886,-480.0,0.00027726,5]
[364811904,1749249050897,-1128.96,0.00027726,5]
[364811905,1749249050907,-508.16226497,0.00027726,5]
[364811906,1749249050917,-5394.96,0.00027726,5]
[364811907,1749249050926,-650.68,0.00027726,5]
[364811908,1749249050936,-480.0,0.00027726,5]
[364811909,1749249050949,-480.0,0.00027726,5]
[364811910,1749249050959,-1252.94,0.00027726,5]
[364811911,1749249050969,-839.78,0.00027726,5]
[364811912,1749249050979,-597.47,0.00027726,5]
[364811913,1749249050988,-2287.47,0.00027726,5]
[364811914,1749249050998,-480.0,0.00027726,5]
[364811915,1749249051008,-1284.431354,0.00027726,5]
[364811916,1749249051018,-480.0,0.00027726,5]
[364811917,1749249051028,-480.0,0.00027726,5]
[364811918,1749249051038,-776.7,0.00027726,5]
[364811919,1749249051048,-1339.2,0.00027726,5]
[364811920,1749249051060,-1133.55,0.00027726,5]
[364811921,1749249051070,-560.8,0.00027726,5]
[364811922,1749249051080,-634.45,0.00027726,5]
[364811923,1749249051090,-2020.92,0.00027726,5]
[364811924,1749249051100,-955.86,0.00027726,5]
[364811925,1749249051112,-561.21,0.00027726,5]
[364811926,1749249051122,-480.0,0.00027726,5]
[364811927,1749249051132,-2484.76,0.00027726,5]
[364811928,1749249051143,-751.76,0.00027726,5]
[364811929,1749249051152,-1476.09,0.00027726,5]
[364811930,1749249051163,-767.245013,0.00027726,5]
[364811931,1749249051173,-1062.3,0.00027726,5]
[364811932,1749249051183,-684.25,0.00027726,5]
[364811933,1749249051194,-1006.98,0.00027726,5]
[364811934,1749249051204,-644.85,0.00027726,5]
[364811935,1749249051214,-480.0,0.00027726,5]
[364811936,1749249051224,-480.0,0.00027726,5]
[364811937,1749249051234,-747.15,0.00027726,5]
[364811938,1749249051244,-480.0,0.00027726,5]
[364811939,1749249051255,-2561.95,0.00027726,5]
[364811940,1749249051266,-480.0,0.00027726,5]
[364811941,1749249051276,-480.0,0.00027726,5]
[364811942,1749249051285,-1671.25,0.00027726,5]
[364811943,1749249051295,-9406.81,0.00027726,5]
[364811944,1749249051305,-480.0,0.00027726,5]
[364811945,1749249051315,-1049.08,0.00027726,5]
[364811946,1749249051325,-480.0,0.00027726,5]
[364811947,1749249051335,-1149.34,0.00027726,5]
[364811948,1749249051593,-480.0,0.00027726,5]
[364811949,1749249051613,-4644.09,0.00027726,5]
[364811950,1749249051623,-480.0,0.00027726,5]
[364811951,1749249051633,-480.0,0.00027726,5]
[364811952,1749249051643,-903.91,0.00027726,5]
[364811953,1749249051653,-1214.33,0.00027726,5]
[364811954,1749249051663,-1366.78,0.00027726,5]
[364811955,1749249051673,-498.51,0.00027726,5]
[364811956,1749249051684,-480.0,0.00027726,5]
[364811957,1749249051693,-782.13,0.00027726,5]
[364811958,1749249051703,-480.0,0.00027726,5]
[364811959,1749249051713,-919.51,0.00027726,5]
[364811960,1749249051723,-1040.43,0.00027726,5]
[364811961,1749249051732,-1015.0,0.00027726,5]
[364811962,1749249051742,-1599.2,0.00027726,5]
[364811963,1749249051751,-480.0,0.00027726,5]
[364811964,1749249051761,-480.0,0.00027726,5]
[364811965,1749249051771,-480.0,0.00027726,5]
[364811966,1749249051781,-3545.61,0.00027726,5]
[364811967,1749249051790,-480.0,0.00027726,5]
[364811968,1749249051800,-1468.39,0.00027726,5]
[364811969,1749249051809,-619.5,0.00027726,5]
[364811970,1749249051820,-978.02,0.00027726,5]
[364811971,1749249051829,-480.0,0.00027726,5]
[364811972,1749249051839,-576.36,0.00027726,5]
[364811973,1749249051849,-480.0,0.00027726,5]
[364811974,1749249051859,-480.0,0.00027726,5]
[364811975,1749249051869,-1451.75,0.00027726,5]
[364811976,1749249051878,-1249.34,0.00027726,5]
[364811977,1749249051888,-244.20833865,0.00027726,5]
[364811978,1749249051898,-1324.83,0.00027726,5]
[364811979,1749249051908,-2825.94,0.00027726,5]
[364811980,1749249051918,-519.06,0.00027726,5]
[364811981,1749249051927,-480.0,0.00027726,5]
[364811982,1749249051937,-876.83,0.00027726,5]
[364811983,1749249051947,-480.0,0.00027726,5]
[364811984,1749249051957,-9134.21,0.00027726,5]
[364811985,1749249051967,-480.0,0.00027726,5]
[364811986,1749249051977,-530.99,0.00027726,5]
[364811987,1749249051986,-13397.65,0.00027726,5]
[364811988,1749249051996,-753.87,0.00027726,5]
[364811989,1749249052006,-480.0,0.00027726,5]
[364811990,1749249052015,-494.07,0.00027726,5]
[364811991,1749249052025,-489.37,0.00027726,5]
[364811992,1749249052035,-480.0,0.00027726,5]
[364811993,1749249052044,-480.0,0.00027726,5]
[364811994,1749249052054,-550.68,0.00027726,5]
[364811995,1749249052064,-1086.28,0.00027726,5]
[364811996,1749249052074,-480.0,0.00027726,5]
[364811997,1749249052088,-5872.23,0.00027726,5]
[364811998,1749249052099,-1297.03,0.00027726,5]
[364811999,1749249052109,-480.0,0.00027726,5]
[364812000,1749249052120,-1071.02,0.00027726,5]
[364812001,1749249052130,-1434.25,0.00027726,5]
[364812002,1749249052140,-480.0,0.00027726,5]
[364812003,1749249052150,-805.27,0.00027726,5]
[364812004,1749249052160,-480.0,0.00027726,5]
[364812005,1749249052170,-1698.93,0.00027726,5]
[364812006,1749249052180,-480.0,0.00027726,5]
[364812007,1749249052190,-10035.0,0.00027726,5]
[364812008,1749249052200,-480.0,0.00027726,5]
[364812009,1749249052209,-1364.04,0.00027726,5]
[364812010,1749249052218,-3370.61,0.00027726,5]
[364812011,1749249052228,-2768.53,0.00027726,5]
[364812012,1749249052238,-601.16,0.00027726,5]
[364812013,1749249052247,-1472.37,0.00027726,5]
[364812014,1749249052257,-480.0,0.00027726,5]
[364812015,1749249052267,-3042.72,0.00027726,5]
[364812016,1749249052276,-480.0,0.00027726,5]
[364812017,1749249052286,-480.0,0.00027726,5]
[364812018,1749249052295,-489.54,0.00027726,5]
[364812019,1749249052306,-480.0,0.00027726,5]
[364812020,1749249052315,-480.0,0.00027726,5]
[364812021,1749249052324,-517.23,0.00027726,5]
[364812022,1749249052334,-1392.9,0.00027726,5]
[364812023,1749249052344,-480.0,0.00027726,5]
[364812024,1749249052353,-793.54,0.00027726,5]
[364812025,1749249052363,-480.0,0.00027726,5]
[364812026,1749249052372,-480.0,0.00027726,5]
[364812027,1749249052382,-480.0,0.00027726,5]
[364812028,1749249052392,-480.0,0.00027726,5]
[364812029,1749249052402,-658.0,0.00027726,5]
[364812030,1749249052411,-480.0,0.00027726,5]
[364812031,1749249052421,-549.97,0.00027726,5]
[364812032,1749249052430,-480.0,0.00027726,5]
[364812033,1749249052439,-2962.92,0.00027726,5]
[364812034,1749249052448,-682.01,0.00027726,5]
[364812035,1749249052458,-1377.03,0.00027726,5]
[364812036,1749249052468,-1477.44,0.00027726,5]
[364812037,1749249052477,-480.0,0.00027726,5]
[364812038,1749249052487,-1388.75,0.00027726,5]
[364812039,1749249052497,-532.97,0.00027726,5]
[364812040,1749249052506,-832.53,0.00027726,5]
[364812041,1749249052515,-480.0,0.00027726,5]
[364812042,1749249052525,-480.0,0.00027726,5]
[364812043,1749249052537,-1207.13,0.00027726,5]
[364812044,1749249052546,-4118.2,0.00027726,5]
[364812045,1749249052556,-956.85,0.00027726,5]
[364812046,1749249052565,-480.0,0.00027726,5]
[364812047,1749249052575,-2445.82,0.00027726,5]
[364812048,1749249052584,-1102.03,0.00027726,5]
[364812049,1749249052594,-1097.1,0.00027726,5]
[364812050,1749249052606,-480.0,0.00027726,5]
[364812051,1749249052615,-3539.2,0.00027726,5]
[364812052,1749249052624,-480.0,0.00027726,5]
[364812053,1749249052634,-1807.67,0.00027726,5]
[364812054,1749249052643,-804.07,0.00027726,5]
[364812055,1749249052653,-889.55,0.00027726,5]
[364812056,1749249052663,-2612.22,0.00027726,5]
[364812057,1749249052674,-480.0,0.00027726,5]
[364812058,1749249052683,-480.0,0.00027726,5]
[364812059,1749249052693,-480.7,0.00027726,5]
[364812060,1749249052703,-480.0,0.00027726,5]
[364812061,1749249052713,-2341.98,0.00027726,5]
[364812062,1749249052723,-545.98,0.00027726,5]
[364812063,1749249052733,-569.07,0.00027726,5]
[364812064,1749249052744,-4003.64,0.00027726,5]
[364812065,1749249052754,-5914.05,0.00027726,5]
[364812066,1749249052764,-480.0,0.00027726,2]
[364812067,1749249052773,-480.0,0.00027726,5]
[364812068,1749249052783,-1337.49,0.00027726,5]
[364812069,1749249052792,-829.99,0.00027726,5]
[364812070,1749249052801,-480.0,0.00027726,5]
[364812071,1749249052811,-1525.61,0.00027726,5]
[364812072,1749249052821,-770.94,0.00027726,5]
[364812073,1749249052831,-480.0,0.00027726,2]
[364812074,1749249052840,-794.19,0.00027726,5]
[364812075,1749249052850,-2791.74,0.00027726,5]
[364812076,1749249052860,-850.62,0.00027726,5]
[364812077,1749249052869,-1521.49,0.00027726,5]
[364812078,1749249052879,-1313.26,0.00027726,5]
[364812079,1749249052888,-620.14,0.00027726,5]
[364812080,1749249052898,-480.0,0.00027726,5]
[364812081,1749249052908,-480.0,0.00027726,5]
[364812082,1749249052918,-812.48,0.00027726,5]
[364812083,1749249052927,-682.0,0.00027726,5]
[364812084,1749249052936,-555.67,0.00027726,5]
[364812085,1749249052945,-480.0,0.00027726,5]
[364812086,1749249052955,-1027.0,0.00027726,5]
[364812087,1749249052964,-879.45,0.00027726,5]
[364812088,1749249052973,-393.14228996,0.00027726,5]
[364812089,1749249052983,-1454.01,0.00027726,5]
[364812090,1749249052993,-480.0,0.00027726,5]
[364812091,1749249053002,-618.62382848,0.00027757,2]
[364812092,1749249053013,-150.0,0.00027766,2]
[364812093,1749249053022,-500.0,0.00027773,5]
[364812094,1749249053032,-302.24,0.00027776,2]
[364812095,1749249053041,-303.5,0.00027776,2]
[364812096,1749249053051,-303.24,0.00027776,2]
[364812097,1749249053060,-302.4,0.00027776,2]
[364812098,1749249053069,-303.28,0.00027776,2]
[364812099,1749249053079,-301.56,0.00027776,2]
[364812100,1749249053089,-300.42,0.00027776,2]
[364812101,1749249053099,-162.5322982,0.000278,2]
[364812102,1749249053109,-305.52,0.00027817,2]
[364812103,1749249053120,-303.78,0.00027817,2]
[364812104,1749249053131,-303.08,0.00027817,2]
[364812105,1749249053140,-1000.0,0.00027835,2]
[364812106,1749249053150,-150.0,0.00027845,2]
[364812107,1749249053159,-200.0,0.00027848,2]
[364812108,1749249053169,-150.0,0.00027849,2]
[364812109,1749249053179,-205.0,0.00027855,5]
[364812110,1749249053188,-152.88,0.0002788,2]
[364812111,1749249053198,-480.0,0.0002789,5]
[364812112,1749249053208,-480.0,0.0002789,5]
[364812113,1749249053217,-1959.661055,0.0002789,5]
[364812114,1749249053226,-480.0,0.0002789,5]
[364812115,1749249053236,-2212.720802,0.0002789,5]
[364812116,1749249053245,-480.0,0.0002789,5]
[364812117,1749249053255,-590.27701063,0.0002789,5]
[364812118,1749249053265,-678.27,0.0002789,5]
[364812119,1749249053275,-480.0,0.0002789,5]
[364812120,1749249053284,-480.0,0.0002789,5]
[364812121,1749249053294,-480.0,0.0002789,5]
[364812122,1749249053304,-480.0,0.0002789,5]
[364812123,1749249053313,-512.9,0.0002789,5]
[364812124,1749249053323,-181.77577381,0.0002789,5]
[364812125,1749249053332,-480.0,0.0002789,5]
[364812126,1749249053342,-480.0,0.0002789,5]
[364812127,1749249053352,-480.0,0.0002789,5]
[364812128,1749249053361,-480.0,0.0002789,5]
[364812129,1749249053371,-480.0,0.0002789,5]
[364812130,1749249053382,-529.84,0.0002789,5]
[364812131,1749249053392,-480.0,0.0002789,5]
[364812132,1749249053402,-480.0,0.0002789,5]
[364812133,1749249053412,-480.0,0.0002789,5]
[364812134,1749249053421,-195.27478845,0.0002789,5]
[364812135,1749249053431,-606.23,0.0002789,5]
[364812136,1749249053441,-480.0,0.0002789,5]
[364812137,1749249053451,-304.10269871,0.0002789,5]
[364812138,1749249053460,-677.96,0.0002789,5]
[364812139,1749249053470,-480.0,0.0002789,5]
[364812140,1749249053480,-480.0,0.0002789,5]
[364812141,1749249053489,-480.0,0.0002789,5]
[364812142,1749249053499,-830.71,0.0002789,5]
[364812143,1749249053509,-480.0,0.0002789,5]
[364812144,1749249053518,-480.0,0.0002789,5]
[364812145,1749249053530,-710.66,0.0002789,5]
[364812146,1749249053540,-480.0,0.0002789,5]
[364812147,1749249053550,-480.0,0.0002789,5]
[364812148,1749249053560,-247.793539,0.0002789,5]
[364812149,1749249053570,-480.0,0.0002789,5]
[364812150,1749249053580,-457.49545935,0.0002789,5]
[364812151,1749249053590,-559.5,0.0002789,5]
[364812152,1749249053600,-480.0,0.0002789,5]
[364812153,1749249053610,-480.0,0.0002789,5]
[364812154,1749249053621,-480.0,0.0002789,5]
[364812155,1749249053635,-480.0,0.0002789,5]
[364812156,1749249053645,-549.49,0.0002789,5]
[364812157,1749249053655,-1076.21,0.0002789,5]
[364812158,1749249053665,-480.0,0.0002789,5]
[364812159,1749249053675,-480.0,0.0002789,5]
[364812160,1749249053684,-480.0,0.0002789,5]
[364812161,1749249053694,-527.39,0.0002789,5]
[364812162,1749249053704,-480.0,0.0002789,5]
[364812163,1749249053714,-480.0,0.0002789,5]
[364812164,1749249053725,-555.9,0.0002789,5]
[364812165,1749249053735,-655.43,0.0002789,5]
[364812166,1749249053745,-480.0,0.0002789,5]
[364812167,1749249053754,-1040.33,0.0002789,5]
[364812168,1749249053764,-480.0,0.0002789,5]
[364812169,1749249053774,-480.0,0.0002789,5]
[364812170,1749249053783,-177.574558,0.0002789,5]
[364812171,1749249053793,-359.49353205,0.0002789,5]
[364812172,1749249053803,-313.54995385,0.0002789,5]
[364812173,1749249053812,-480.0,0.0002789,5]
[364812174,1749249053822,-480.0,0.0002789,5]
[364812175,1749249053831,-480.0,0.0002789,5]
[364812176,1749249053840,-480.0,0.0002789,5]
[364812177,1749249053850,-556.96,0.0002789,5]
[364812178,1749249053859,-480.0,0.0002789,5]
[364812179,1749249053869,-480.0,0.0002789,5]
[364812180,1749249053878,-499.5,0.0002789,5]
[364812181,1749249053886,-539.01,0.0002789,5]
[364812182,1749249053894,-480.0,0.0002789,5]
[364812183,1749249053902,-913.42,0.0002789,5]
[364812184,1749249053919,-573.44,0.0002789,5]
[364812185,1749249054032,-480.0,0.0002789,5]
[364812186,1749249054042,-602.23,0.0002789,5]
[364812187,1749249054051,-150.994919,0.0002789,5]
[364812188,1749249054061,-553.04,0.0002789,5]
[364812189,1749249054070,-567.5,0.0002789,5]
[364812190,1749249054079,-480.0,0.0002789,5]
[364812191,1749249054089,-480.0,0.0002789,5]
[364812192,1749249054098,-480.0,0.0002789,5]
[364812193,1749249054107,-480.0,0.0002789,5]
[364812194,1749249054116,-502.06,0.0002789,5]
[364812195,1749249054125,-480.0,0.0002789,5]
[364812196,1749249054135,-480.0,0.0002789,5]
[364812197,1749249054144,-846.78,0.0002789,5]
[364812198,1749249054153,-541.23035317,0.0002789,5]
[364812199,1749249054162,-480.0,0.0002789,5]
[364812200,1749249054171,-480.0,0.0002789,5]
[364812201,1749249054181,-516.88,0.0002789,5]
[364812202,1749249054190,-703.63,0.0002789,5]
[364812203,1749249054200,-480.0,0.0002789,5]
[364812204,1749249054209,-491.95,0.0002789,5]
[364812205,1749249054218,-1302.12,0.0002789,5]
[364812206,1749249054228,-480.0,0.0002789,5]
[364812207,1749249054237,-480.0,0.0002789,5]
[364812208,1749249054246,-480.0,0.0002789,5]
[364812209,1749249054255,-861.895964,0.0002789,5]
[364812210,1749249054264,-480.0,0.0002789,5]
[364812211,1749249054274,-503.98,0.0002789,5]
[364812212,1749249054283,-480.0,0.0002789,5]
[364812213,1749249054292,-480.0,0.0002789,5]
[364812214,1749249054302,-480.0,0.0002789,5]
[364812215,1749249054312,-41603.54,0.0002789,5]
[364812216,1749249054321,-1007.79,0.0002789,5]
[364812217,1749249054330,-1425.585735,0.0002789,5]
[364812218,1749249054340,-2220.64,0.0002789,5]
[364812219,1749249054349,-1000.0,0.0002789,2]
[364812220,1749249054358,-480.0,0.0002789,5]
[364812221,1749249054368,-480.0,0.0002789,5]
[364812222,1749249054378,-1128.96,0.0002789,5]
[364812223,1749249054389,-5394.96,0.0002789,5]
[364812224,1749249054398,-650.68,0.0002789,5]
[364812225,1749249054408,-480.0,0.0002789,5]
[364812226,1749249054417,-480.0,0.0002789,5]
[364812227,1749249054427,-1252.94,0.0002789,5]
[364812228,1749249054438,-839.78,0.0002789,5]
[364812229,1749249054447,-597.47,0.0002789,5]
[364812230,1749249054456,-2287.47,0.0002789,5]
[364812231,1749249054465,-480.0,0.0002789,5]
[364812232,1749249054474,-1284.431354,0.0002789,5]
[364812233,1749249054483,-480.0,0.0002789,5]
[364812234,1749249054493,-480.0,0.0002789,5]
[364812235,1749249054502,-776.7,0.0002789,5]
[364812236,1749249054511,-1339.2,0.0002789,5]
[364812237,1749249054520,-1133.55,0.0002789,5]
[364812238,1749249054534,-560.8,0.0002789,5]
[364812239,1749249054543,-634.45,0.0002789,5]
[364812240,1749249054553,-2020.92,0.0002789,5]
[364812241,1749249054563,-955.86,0.0002789,5]
[364812242,1749249054572,-561.21,0.0002789,5]
[364812243,1749249054582,-480.0,0.0002789,5]
[364812244,1749249054591,-2484.76,0.0002789,5]
[364812245,1749249054602,-751.76,0.0002789,5]
[364812246,1749249054611,-1476.09,0.0002789,5]
[364812247,1749249054620,-767.245013,0.0002789,5]
[364812248,1749249054629,-1062.3,0.0002789,5]
[364812249,1749249054638,-684.25,0.0002789,5]
[364812250,1749249054647,-1006.98,0.0002789,5]
[364812251,1749249054657,-644.85,0.0002789,5]
[364812252,1749249054666,-480.0,0.0002789,5]
[364812253,1749249054675,-480.0,0.0002789,5]
[364812254,1749249054684,-747.15,0.0002789,5]
[364812255,1749249054693,-480.0,0.0002789,5]
[364812256,1749249054706,-2561.95,0.0002789,5]
[364812257,1749249054715,-480.0,0.0002789,5]
[364812258,1749249054724,-480.0,0.0002789,5]
[364812259,1749249054733,-1671.25,0.0002789,5]
[364812260,1749249054742,-9406.81,0.0002789,5]
[364812261,1749249054752,-480.0,0.0002789,5]
[364812262,1749249054761,-1049.08,0.0002789,5]
[364812263,1749249054770,-480.0,0.0002789,5]
[364812264,1749249054779,-1149.34,0.0002789,5]
[364812265,1749249054788,-480.0,0.0002789,5]
[364812266,1749249054797,-4644.09,0.0002789,5]
[364812267,1749249054807,-480.0,0.0002789,5]
[364812268,1749249054816,-480.0,0.0002789,5]
[364812269,1749249054825,-903.91,0.0002789,5]
[364812270,1749249054834,-1214.33,0.0002789,5]
[364812271,1749249054843,-1366.78,0.0002789,5]
[364812272,1749249054852,-498.51,0.0002789,5]
[364812273,1749249054861,-480.0,0.0002789,5]
[364812274,1749249054870,-782.13,0.0002789,5]
[364812275,1749249054879,-480.0,0.0002789,5]
[364812276,1749249054888,-919.51,0.0002789,5]
[364812277,1749249054898,-1040.43,0.0002789,5]
[364812278,1749249054907,-1015.0,0.0002789,5]
[364812279,1749249054916,-1599.2,0.0002789,5]
[364812280,1749249054925,-480.0,0.0002789,5]
[364812281,1749249054934,-480.0,0.0002789,5]
[364812282,1749249054943,-480.0,0.0002789,5]
[364812283,1749249054952,-3545.61,0.0002789,5]
[364812284,1749249054962,-480.0,0.0002789,5]
[364812285,1749249054971,-1468.39,0.0002789,5]
[364812286,1749249054980,-619.5,0.0002789,5]
[364812287,1749249054989,-978.02,0.0002789,5]
[364812288,1749249054999,-480.0,0.0002789,5]
[364812289,1749249055008,-576.36,0.0002789,5]
[364812290,1749249055017,-480.0,0.0002789,5]
[364812291,1749249055027,-1451.75,0.0002789,5]
[364812292,1749249055036,-480.0,0.0002789,5]
[364812293,1749249055046,-1249.34,0.0002789,5]
[364812294,1749249055055,-1324.83,0.0002789,5]
[364812295,1749249055064,-2825.94,0.0002789,5]
[364812296,1749249055073,-519.06,0.0002789,5]
[364812297,1749249055083,-480.0,0.0002789,5]
[364812298,1749249055093,-876.83,0.0002789,5]
[364812299,1749249055102,-480.0,0.0002789,5]
[364812300,1749249055112,-9134.21,0.0002789,5]
[364812301,1749249055121,-480.0,0.0002789,5]
[364812302,1749249055130,-530.99,0.0002789,5]
[364812303,1749249055140,-13397.65,0.0002789,5]
[364812304,1749249055149,-753.87,0.0002789,5]
[364812305,1749249055158,-480.0,0.0002789,5]
[364812306,1749249055167,-494.07,0.0002789,5]
[364812307,1749249055176,-489.37,0.0002789,5]
[364812308,1749249055185,-480.0,0.0002789,5]
[364812309,1749249055195,-1086.28,0.0002789,5]
[364812310,1749249055204,-550.68,0.0002789,5]
[364812311,1749249055213,-480.0,0.0002789,5]
[364812312,1749249055223,-5872.23,0.0002789,5]
[364812313,1749249055232,-1297.03,0.0002789,5]
[364812314,1749249055241,-480.0,0.0002789,5]
[364812315,1749249055251,-1071.02,0.0002789,5]
[364812316,1749249055260,-1434.25,0.0002789,5]
[364812317,1749249055269,-480.0,0.0002789,5]
[364812318,1749249055276,-805.27,0.0002789,5]
[364812319,1749249055285,-480.0,0.0002789,5]
[364812320,1749249055295,-1698.93,0.0002789,5]
[364812321,1749249055304,-480.0,0.0002789,5]
[364812322,1749249055314,-10035.0,0.0002789,5]
[364812323,1749249055323,-480.0,0.0002789,5]
[364812324,1749249055332,-1364.04,0.0002789,5]
[364812325,1749249055341,-2768.53,0.0002789,5]
[364812326,1749249055350,-3370.61,0.0002789,5]
[364812327,1749249055360,-601.16,0.0002789,5]
[364812328,1749249055369,-1472.37,0.0002789,5]
[364812329,1749249055379,-480.0,0.0002789,5]
[364812330,1749249055389,-3042.72,0.0002789,5]
[364812331,1749249055399,-480.0,0.0002789,5]
[364812332,1749249055410,-480.0,0.0002789,5]
[364812333,1749249055421,-489.54,0.0002789,5]
[364812334,1749249055430,-480.0,0.0002789,5]
[364812335,1749249055439,-480.0,0.0002789,5]
[364812336,1749249055449,-517.23,0.0002789,5]
[364812337,1749249055460,-1392.9,0.0002789,5]
[364812338,1749249055469,-480.0,0.0002789,5]
[364812339,1749249055478,-793.54,0.0002789,5]
[364812340,1749249055489,-480.0,0.0002789,5]
[364812341,1749249055499,-480.0,0.0002789,5]
[364812342,1749249055510,-480.0,0.0002789,5]
[364812343,1749249055522,-480.0,0.0002789,5]
[364812344,1749249055534,-658.0,0.0002789,5]
[364812345,1749249055544,-480.0,0.0002789,5]
[364812346,1749249055555,-549.97,0.0002789,5]
[364812347,1749249055566,-480.0,0.0002789,5]
[364812348,1749249055576,-2962.92,0.0002789,5]
[364812349,1749249055586,-682.01,0.0002789,5]
[364812350,1749249055598,-1377.03,0.0002789,5]
[364812351,1749249055607,-1477.44,0.0002789,5]
[364812352,1749249055616,-480.0,0.0002789,5]
[364812353,1749249055626,-1388.75,0.0002789,5]
[364812354,1749249055634,-532.97,0.0002789,5]
[364812355,1749249055644,-832.53,0.0002789,5]
[364812356,1749249055653,-480.0,0.0002789,5]
[364812357,1749249055663,-480.0,0.0002789,5]
[364812358,1749249055672,-1207.13,0.0002789,5]
[364812359,1749249055681,-4118.2,0.0002789,5]
[364812360,1749249055689,-956.85,0.0002789,5]
[364812361,1749249055697,-480.0,0.0002789,5]
[364812362,1749249055705,-2445.82,0.0002789,5]
[364812363,1749249055714,-1102.03,0.0002789,5]